Cogmind - Beta 15 @@@ ROGUE MODE // 2025.08.19 @ 20:33:30 Player: JuustuToug Result: Destroyed by AG-36332 with Assembled Focal Cannon Performance ------------- Evolutions (3) 1500 Regions Visited (12) 2400 Robots Destroyed (92) 460 Value Destroyed (1700) 1700 Prototype IDs (38) 760 Alien Tech Used (1) 200 Bonus (1181) 1181 TOTAL SCORE: 8201 Bonus ------- High Alert Combat Kills 2 Follower Combat Kills 126 Aligned with FarCom 300 Met Imprinter 300 Was Imprinted 300 Triggered Deep Caves Wall 500 Friendly Fire -347 Cogmind --------- Core Integrity 0/700 Matter 172/300 Energy 100/100 System Corruption 1% Temperature Cool (12) Movement Flying (32) Location -7/Deep Caves Parts ------- > --- POWER (1) -------- (None) > --- PROPULSION (5) --- Cesium-ion Thruster Cesium-ion Thruster > --- UTILITY (6) ------ (None) > --- WEAPON (2) ------- (None) > --- INVENTORY (5) ---- Arc Projector Makeshift Laser Proton Missile Launcher Phasing Sabre Phasing Sabre Peak State ------------ > --- POWER ------------ Light Deuterium Engine > --- PROPULSION ------- Cesium-ion Thruster Cesium-ion Thruster Cesium-ion Thruster Improved VTOL Module > --- UTILITY ---------- Medium Storage Unit Advanced Weight Redist. System Experimental Sensor Array Improved Signal Interpreter Modified TNC Hacking Suite > --- WEAPON ----------- AWS/Gauss > --- INVENTORY -------- Light Nuclear Core VTOL Module Advanced ECM Suite Improved Medium Armor Plating Recalibrator Lightning Gun Gatling Laser Remote Datajack Katana [Rating: 60] Favorites ----------- Power Improved Ion Engine Engine Improved Ion Engine Power Core Light Fission Core Propulsion Cesium-ion Thruster Leg Potential Leg Flight Unit Cesium-ion Thruster Utility Signal Interpreter Device Advanced Weight Redist. System Storage Medium Storage Unit Processor Signal Interpreter Hackware Hacking Suite Protection Light Armor Plating Weapon AWS/Gauss Energy Gun EM Pulse Gun Energy Cannon Light EM Pulse Cannon Ballistic Gun AWS/Gauss Launcher Proton Missile Launcher Special Weapon Remote Datajack Slashing Weapon Greatsword Build | -11 -10 -10 -9 -9 -9 -8 -8 -7 -7 -7 -7 -7 ------- Run | Yrd Mat Min Mat Min Exi Min Mat Fac Low Low Zio Dee Slots Evolved 6 | . . . 2 . . . 2 2 . . . . Power . | . . . . . . . . . . . . . Propulsion 2 | . . . 2 . . . . . . . . . Utility 4 | . . . . . . . 2 2 . . . . Weapon . | . . . . . . . . . . . . . Parts Attached 94 | 6 12 3 9 7 5 2 19 8 . 6 6 11 Power 15 | 1 1 2 2 1 1 . 3 1 . 1 . 2 Engine 12 | 1 . 2 2 1 1 . 2 1 . . . 2 Core 3 | . 1 . . . . . 1 . . 1 . . Reactor . | . . . . . . . . . . . . . Propulsion 28 | 2 5 . 2 2 2 2 6 2 . 1 . 4 Treads . | . . . . . . . . . . . . . Leg 7 | 2 3 . . . 2 . . . . . . . Wheel . | . . . . . . . . . . . . . Hover . | . . . . . . . . . . . . . Flight 21 | . 2 . 2 2 . 2 6 2 . 1 . 4 Utility 25 | 1 3 1 . 2 1 . 6 1 . 2 3 5 Device 9 | . 1 . . 1 . . 3 . . . 2 2 Storage 4 | 1 . . . . . . 1 1 . . . 1 Processor 4 | . . 1 . . 1 . 1 . . . . 1 Hackware 3 | . . . . . . . 1 . . 1 1 . Protection 5 | . 2 . . 1 . . . . . 1 . 1 Artifact . | . . . . . . . . . . . . . Weapon 26 | 2 3 . 5 2 1 . 4 4 . 2 3 . Energy Gun 13 | 1 3 . 2 1 . . 2 4 . . . . Energy Cannon 4 | . . . 3 . . . 1 . . . . . Ballistic Gun 2 | 1 . . . . 1 . . . . . . . Ballistic Cannon . | . . . . . . . . . . . . . Launcher 2 | . . . . 1 . . . . . 1 . . Special Weapon 1 | . . . . . . . . . . . 1 . Impact Weapon . | . . . . . . . . . . . . . Slashing Weapon 4 | . . . . . . . 1 . . 1 2 . Piercing Weapon . | . . . . . . . . . . . . . Special Melee Weapon . | . . . . . . . . . . . . . Unidentified Prototypes 9 | . . . 1 1 . . 1 1 . 1 2 2 Corrupted Parts 3 | . . . . . . . . . . 3 . . System Corruption 17 | . . . . . . . . . . 17 . . Parts Lost 28 | . 1 . 3 1 . . 1 . . 6 3 13 Power 3 | . . . . . . . . . . 1 1 1 Propulsion 10 | . . . 1 . . . 1 . . 2 1 5 Utility 11 | . . . . . . . . . . 3 1 7 Weapon 4 | . 1 . 2 1 . . . . . . . . Highest Loss Streak 7 | . 1 . 1 1 . . 1 . . 6 3 7 To Critical Strikes . | . . . . . . . . . . . . . Average Backups 6 | 2 6 4 5 5 4 5 6 8 10 8 9 9 Power 1 | 1 1 1 1 2 1 1 . 1 1 . . . Propulsion . | . 1 2 . . . . . . 1 . . . Utility 3 | . 1 1 2 2 2 3 3 4 5 4 5 4 Weapon 1 | . 2 . 1 . 1 1 1 2 2 2 3 4 Tool/Special . | . . . . . . . . . . . . . Unused Backups 25 | . 7 . 1 1 1 2 1 4 . 2 1 5 Power 4 | . 2 . . . . 1 . . . 1 . . Propulsion 3 | . 2 . . . . . 1 . . . . . Utility 11 | . 2 . . . 1 . . 2 . 1 1 4 Weapon 6 | . 1 . 1 1 . 1 . 1 . . . 1 Tool/Special 1 | . . . . . . . . 1 . . . . Average Slot Usage (%) 90 | . 98 100 92 99 89 88 91 94 100 79 84 62 Engine 6 | . 6 7 11 11 11 11 8 7 7 2 . . Core 2 | . 7 6 . . . . . . . 3 6 . Leg 7 | . 27 . . . 19 22 5 . . . . . Flight 25 | . . 28 37 43 24 22 29 28 30 30 27 19 Device 8 | . . 14 8 11 1 . 6 14 15 10 12 18 Storage 5 | . 13 . 2 . . . 8 7 7 7 7 6 Processor 11 | . . 9 11 11 20 22 18 15 15 10 7 12 Hackware 1 | . . . . . . . 1 7 7 3 4 . Protection 3 | . 13 4 . . . . . . . 3 6 . Energy Gun 6 | . 21 14 4 9 1 . 4 8 7 . . . Energy Cannon 2 | . . . 17 11 1 . 3 . . . . . Ballistic Gun 4 | . 5 14 . . 9 11 3 2 . . . . Slashing Weapon 2 | . . . . . . . 2 . 7 6 7 1 Peak Build Rating 60 | 6 10 10 13 20 48 48 56 60 53 56 58 52 Average Rating 33 | 4 8 8 11 18 44 48 41 54 53 45 51 44 On Entrance 28 | . 6 10 8 12 19 48 48 37 53 53 40 36 Naked Turns . | . . . . . . . . . . . . . Heaviest Build 33 | 14 17 12 16 16 17 17 23 29 27 29 33 23 Greatest Support 66 | 20 20 14 22 22 66 60 60 29 29 33 30 20 Greatest Overweight (x) 1 | . 1 . . . . . 1 . . 1 1 1 Average Overweight (x) . | . . . . . . . . . . . . . Largest Inventory Capacity 10 | 8 8 5 8 5 5 5 8 10 10 10 10 10 Average Capacity 7 | 7 7 5 5 5 5 5 7 9 10 10 10 9 Most Carried 10 | 5 8 5 8 5 5 5 8 10 10 10 10 10 Average Carried 7 | 2 6 4 5 4 4 4 7 8 10 8 9 9 Final Capacity 10 | 8 5 5 5 5 5 5 8 10 10 10 10 5 Final Carried 10 | 2 5 5 5 5 5 5 8 10 10 8 10 5 Class Distribution -------------------- 55% | Mutant 29% | Sprinter 14% | Scout Dominant Class ---------------- Mutant | -10/Materials Mutant | -10/Mines Mutant | -9/Materials Sprinter | -9/Mines Mutant | -9/Exiles Mutant | -8/Mines Sprinter | -8/Materials Scout | -7/Factory Scout | -7/Lower Caves Sprinter | -7/Lower Caves Mutant | -7/Zion Mutant | -7/Deep Caves Resources | -11 -10 -10 -9 -9 -9 -8 -8 -7 -7 -7 -7 -7 ----------- Run | Yrd Mat Min Mat Min Exi Min Mat Fac Low Low Zio Dee Matter Collected 1547 | 246 184 84 120 100 . 131 275 77 78 157 67 28 Remotely . | . . . . . . . . . . . . . Salvage Created 2673 | . 606 48 139 74 . 434 971 47 . 279 34 41 Parts 166 | . 41 6 5 10 . 30 58 7 . 6 3 . Haulers Intercepted 3 | . 2 . . . . . 1 . . . . . Recyclers Shooed . | . . . . . . . . . . . . . Parts Field Recycled . | . . . . . . . . . . . . . Retrieved Matter . | . . . . . . . . . . . . . Parts Self-Destructed 15 | . . . . . . . . . 14 1 . . Prevented . | . . . . . . . . . . . . . Kills | -11 -10 -10 -9 -9 -9 -8 -8 -7 -7 -7 -7 -7 ------- Run | Yrd Mat Min Mat Min Exi Min Mat Fac Low Low Zio Dee Combat Hostiles Destroyed 70 | . 14 3 1 7 . 21 22 . . 1 1 . Melee 2 | . . . . . . . 1 . . . 1 . Guns 56 | . 11 3 . 1 . 21 20 . . . . . Cannons 4 | . . . . 3 . . 1 . . . . . AOE 8 | . 3 . 1 3 . . . . . 1 . . Classes Destroyed 12 | . 6 . 1 . . 1 3 . . 1 . . Worker 1 | . . . . . . . 1 . . . . . Builder 2 | . 1 . . . . . 1 . . . . . Hauler 3 | . 2 . . . . . 1 . . . . . Recycler 2 | . . . 1 . . . 1 . . . . . Mechanic 1 | . . . . . . . 1 . . . . . Operator 6 | . 1 . 1 . . . 2 2 . . . . Watcher 7 | . 3 . 1 . . . 3 . . . . . Swarmer 49 | . 9 3 . 7 . 18 12 . . . . . Grunt 16 | . 5 . 1 . . 2 8 . . . . . Duelist 1 | . . . . . . 1 . . . . . . Sentry 2 | . . . . . . . 2 . . . . . Z-Technician 5 | . . . . . . . . . . . . 5 Packrat 2 | . . . . . . . . . . 2 . . Master Thief 1 | . . . . . . . . . . 1 . . Best Kill Streak 6 | . 5 3 2 3 . 6 6 1 . 1 1 5 Combat Bots Only 6 | . 3 3 1 3 . 6 4 . . 1 1 . Max Kills in Single Turn 4 | . 1 2 1 2 . 2 4 1 . 1 1 4 Gunslinging 1 | . . 1 . . . . . . . . . . Exploded 1 | . 1 . 1 1 . . . . . 1 . . Melee 1 | . . . . . . . 1 . . . 1 . Uniques/NPCs Destroyed 1 | . . . . . . . . . . . 1 . Imprinter (-7/Zion) Combat | -11 -10 -10 -9 -9 -9 -8 -8 -7 -7 -7 -7 -7 -------- Run | Yrd Mat Min Mat Min Exi Min Mat Fac Low Low Zio Dee Hostile Shots Fired 473 | . 67 13 106 29 . 29 81 19 8 11 43 67 Missed 218 | . 19 6 62 14 . 11 28 15 6 3 22 32 Hits 255 | . 48 7 44 15 . 18 53 4 2 8 21 35 Melee 7 | . . . . . . . . . . 7 . . Projectile 248 | . 48 7 44 15 . 18 53 4 2 1 21 35 Critical Strikes 1 | . . . . . . . 1 . . . . . Part Disruptions 1 | . . . . . . . . . . . 1 . Damage Taken 3950 | . 559 82 535 224 . 154 690 69 44 115 254 1224 Core 1232 | . 86 13 164 40 . 34 178 11 . 12 31 663 Absorbed by Shields . | . . . . . . . . . . . . . Regen/Repaired (Parts) 48 | . . . . . . . 48 . . . . . Core Remaining (%) 66 | 100 . 60 . . . 40 67 . . . . . Volleys Fired 129 | . 47 8 12 24 . . 13 3 . 6 13 3 Largest 2 | . 2 2 2 2 . . 2 2 . 1 1 1 Hottest 135 | . 80 70 112 112 . . 110 135 . 55 5 39 Shots Fired 327 | . 93 16 23 28 . 43 95 7 . 6 13 3 Gun 270 | . 93 16 10 16 . 43 82 7 . 3 . . Cannon 32 | . . . 13 6 . . 13 . . . . . Launcher 12 | . . . . 6 . . . . . 3 . 3 Special 13 | . . . . . . . . . . . 13 . Kinetic 131 | . 10 8 . . . 43 69 1 . . . . Thermal 37 | . 10 8 3 . . . 13 3 . . . . Explosive 6 | . . . . 6 . . . . . . . . Electromagnetic 140 | . 73 . 20 22 . . 13 3 . 6 . 3 Robot Hit Streak 17 | . 7 5 6 3 . 17 13 3 . 2 4 6 Robot Miss Streak 5 | . 5 2 5 4 . 3 2 3 . 2 3 . Penetration Max . | . . . . . . . . . . . . . Secondary Targets 3 | . 2 1 . . . . . . . . . . Max Gunslinging Chain 1 | . 1 1 . . . . . . . . . . Autonomous 116 | . . . . . . 43 71 2 . . . . Shots Hit Robots 222 | . 50 11 13 10 . 37 75 4 . 7 12 3 Core Hits 116 | . 23 5 5 7 . 23 36 5 . 7 1 4 Critical Kills . | . . . . . . . . . . . . . Critical Parts Destroyed . | . . . . . . . . . . . . . Critical Strikes 4 | . 3 . . . . . 1 . . . . . Burn 2 | . 2 . . . . . . . . . . . Corrupt 2 | . 1 . . . . . 1 . . . . . Melee Attacks 27 | . . . . . . . 2 2 3 13 6 1 Impact . | . . . . . . . . . . . . . Slashing 27 | . . . . . . . 2 2 3 13 6 1 Piercing . | . . . . . . . . . . . . . Sneak Attacks 3 | . . . . . . . . . . 2 1 . Combat Hostiles . | . . . . . . . . . . . . . Follow-up Attacks . | . . . . . . . . . . . . . Damage Inflicted 8224 | . 951 128 359 338 . 1398 2236 120 . 625 266 1803 Guns 4472 | . 748 128 99 78 . 1398 1893 120 . 8 . . Cannons 364 | . . . 169 54 . . 141 . . . . . Explosions 2593 | . 203 . 91 206 . . 131 . . 270 . 1692 Melee 795 | . . . . . . . 71 . . 347 266 111 Ramming . | . . . . . . . . . . . . . Kinetic 3282 | . 55 67 . . . 1398 1735 27 . . . . Thermal 2536 | . 291 61 116 31 . . 272 66 . 109 . 1590 Explosive 175 | . . . . 175 . . . . . . . . Electromagnetic 1436 | . 605 . 243 132 . . 158 27 . 169 . 102 Impact . | . . . . . . . . . . . . . Slashing 795 | . . . . . . . 71 . . 347 266 111 Piercing . | . . . . . . . . . . . . . Highest Corruption 19 | . . . . . . . . 2 2 19 19 1 Average Corruption 4 | . . . . . . . . 1 2 11 8 1 Corruption Purged . | . . . . . . . . . . . . . Corruption Blocked . | . . . . . . . . . . . . . Effects 33 | . . . . . . . . 1 5 25 . 2 Message Errors 8 | . . . . . . . . 1 1 6 . . Matter Fused 9 | . . . . . . . . . 1 8 . . Heat Flow Errors 4 | . . . . . . . . . 1 3 . . Energy Discharges 4 | . . . . . . . . . . 4 . . Parts Fused 2 | . . . . . . . . . . 2 . . Data Loss (minor) 5 | . . . . . . . . . 2 2 . 1 Data Loss (major) 1 | . . . . . . . . . . . . 1 Overload Shots . | . . . . . . . . . . . . . Overflow Damage 716 | . 14 . 34 28 . . 3 . . 142 154 341 Projectiles 21 | . . . 18 . . . 3 . . . . . Explosions 408 | . 14 . 16 28 . . . . . 9 . 341 Melee 287 | . . . . . . . . . . 133 154 . Knockbacks . | . . . . . . . . . . . . . Impact . | . . . . . . . . . . . . . Kinetic . | . . . . . . . . . . . . . Secondary . | . . . . . . . . . . . . . Self-Inflicted Damage 399 | . 120 . 53 108 . . 37 . . 81 . . Shots 14 | . 4 . 2 3 . . 1 . . 4 . . Rammed . | . . . . . . . . . . . . . Targets Rammed . | . . . . . . . . . . . . . Kicked . | . . . . . . . . . . . . . Crushed . | . . . . . . . . . . . . . Highest Temperature 315 | . 238 116 204 162 . . 315 63 177 276 . 7 Average Temperature 77 | . 58 52 73 59 . . 164 33 84 88 . 7 Received Heat Transfer 791 | . 99 27 150 . . 9 216 . 21 9 29 231 Siege Activations . | . . . . . . . . . . . . . Martial Activations . | . . . . . . . . . . . . . Shielding Activations . | . . . . . . . . . . . . . Robots Disrupted . | . . . . . . . . . . . . . Combat Hostiles . | . . . . . . . . . . . . . Robots Corrupted . | . . . . . . . . . . . . . Combat Hostiles . | . . . . . . . . . . . . . Parts Fried 6 | . 4 . . . . . . . . . . 2 Impact Corruptions . | . . . . . . . . . . . . . Robots Melted . | . . . . . . . . . . . . . Combat Hostiles . | . . . . . . . . . . . . . Parts Melted 1 | . . . . . . . . 1 . . . . Heat Transferred 1838 | . 707 185 174 50 . . 422 150 . 150 . . Parts Sabotaged . | . . . . . . . . . . . . . Parts Stolen 5 | . . . . . . . . . . 5 . . Parts Stripped . | . . . . . . . . . . . . . Power Chain Reactions 9 | . 4 . 2 1 . . 1 . . 1 . . Alert | -11 -10 -10 -9 -9 -9 -8 -8 -7 -7 -7 -7 -7 ------- Run | Yrd Mat Min Mat Min Exi Min Mat Fac Low Low Zio Dee Maximum Alert Level 2 | . . . 2 1 . 2 1 . . . . . Low Security (%) 76 | 100 100 100 26 98 . 58 40 100 . . . . Level 1 19 | . . . 28 1 . 40 59 . . . . . Level 2 4 | . . . 45 . . 1 . . . . . . Level 3 . | . . . . . . . . . . . . . Level 4 . | . . . . . . . . . . . . . Level 5 . | . . . . . . . . . . . . . High Security . | . . . . . . . . . . . . . Max Security . | . . . . . . . . . . . . . Peak Influence 535 | . 152 76 535 202 . 402 347 73 . . . . Initial 145 | . . 25 . 132 . . 145 73 . . . . Average 127 | . 76 20 313 110 . 150 221 19 . . . . Influence Increases 3220 | . 508 156 758 298 . 570 731 119 15 65 . . Destroy 0b10 Robot/C 1560 | . 280 100 180 140 . 420 440 . . . . . Destroy 0b10 Robot/NC 115 | . 35 . 15 . . . 50 10 . 5 . . Destroy Leader 310 | . 60 20 62 20 . 60 88 . . . . . Allied During Kill 14 | . . 6 8 . . . . . . . . . Successful Hack 139 | . 12 . 25 . . . 70 32 . . . . Disable Machine 105 | . 75 . 15 15 . . . . . . . . Destroy Structure 122 | . 16 . 3 48 . 15 38 2 . . . . Partial Spotted 135 | . . . 30 15 . . 15 75 . . . . Lose Combat Pursuer 720 | . 30 30 420 60 . 75 30 . 15 60 . . Influence Decreases 3220 | . 442 222 419 535 102 196 943 280 16 65 . . Entered New Map 669 | . . 41 . 207 102 . 229 89 1 . . . Time Decay 2001 | . 432 181 199 318 . 196 404 191 15 65 . . Search Patrol Dispatched 150 | . . . 150 . . . . . . . . . Lost Part 60 | . 10 . 30 10 . . 10 . . . . . Lost Ally 40 | . . . 40 . . . . . . . . . Purge Threat 300 | . . . . . . . 300 . . . . . Squads Dispatched 15 | . 1 . 5 . . . 7 2 . . . . Investigation 5 | . . . 2 . . . 2 1 . . . . Extermination 1 | . . . . . . . . 1 . . . . Reinforcement 6 | . 1 . 3 . . . 2 . . . . . Assault . | . . . . . . . . . . . . . Garrison 3 | . . . . . . . 3 . . . . . Intercept . | . . . . . . . . . . . . . Searches Triggered 1 | . . . 1 . . . . . . . . . Construction Impeded . | . . . . . . . . . . . . . Haulers Reinforced . | . . . . . . . . . . . . . Active Scanning Responses . | . . . . . . . . . . . . . Cargo Convoy Interrupts . | . . . . . . . . . . . . . Stealth | -11 -10 -10 -9 -9 -9 -8 -8 -7 -7 -7 -7 -7 --------- Run | Yrd Mat Min Mat Min Exi Min Mat Fac Low Low Zio Dee Distress Signals 10 | . 3 . 5 . . . 2 . . . . . Communications Jammed . | . . . . . . . . . . . . . Distress Signals . | . . . . . . . . . . . . . Times Spotted 271 | . 27 7 59 8 . 26 37 8 5 6 10 78 Peak Tracking Total 38 | . 5 3 14 4 . 6 7 5 6 4 9 38 Tactical Retreats 21 | . 1 1 9 1 . 2 2 . 2 1 . 2 Traps | -11 -10 -10 -9 -9 -9 -8 -8 -7 -7 -7 -7 -7 ------- Run | Yrd Mat Min Mat Min Exi Min Mat Fac Low Low Zio Dee Traps Triggered 3 | . 2 . . . . . . 1 . . . . Indirectly . | . . . . . . . . . . . . . Trap Hack Attempts . | . . . . . . . . . . . . . Triggered . | . . . . . . . . . . . . . Disarmed 6 | . 6 . . . . . . . . . . . Reprogrammed . | . . . . . . . . . . . . . Reused . | . . . . . . . . . . . . . Traps Extracted . | . . . . . . . . . . . . . Installed . | . . . . . . . . . . . . . Triggered . | . . . . . . . . . . . . . Most Traps Carried 1 | . . 1 . . . . . . . . . . Machines | -11 -10 -10 -9 -9 -9 -8 -8 -7 -7 -7 -7 -7 ---------- Run | Yrd Mat Min Mat Min Exi Min Mat Fac Low Low Zio Dee Machines Disabled 9 | . 5 . 1 1 . . . . . . . 2 Max in Single Turn 1 | . 1 . 1 1 . . . . . . . 1 Machines Repaired . | . . . . . . . . . . . . . Machines Dismantled . | . . . . . . . . . . . . . Machines Sabotaged . | . . . . . . . . . . . . . Overloaded Fab Kills . | . . . . . . . . . . . . . Hacking | -11 -10 -10 -9 -9 -9 -8 -8 -7 -7 -7 -7 -7 --------- Run | Yrd Mat Min Mat Min Exi Min Mat Fac Low Low Zio Dee Machines Accessed 39 | . 8 . 8 . 1 . 14 8 . . . . Terminals 32 | . 7 . 8 . . . 11 6 . . . . Fabricators 1 | . . . . . . . . 1 . . . . Repair Stations 1 | . . . . . . . 1 . . . . . Recycling Units 1 | . 1 . . . . . . . . . . . Scanalyzers 2 | . . . . . . . 1 1 . . . . Garrison Access 1 | . . . . . . . 1 . . . . . Total Hacks 112 | . 29 . 16 . 1 . 43 23 . . . . Successful 56 | . 18 . 7 . 1 . 19 11 . . . . Failed 56 | . 11 . 9 . . . 24 12 . . . . Catastrophic 8 | . . . 3 . . . 3 2 . . . . Database Lockouts . | . . . . . . . . . . . . . Manual 72 | . 9 . 11 . 1 . 30 17 . . 4 . Terminals 94 | . 25 . 16 . . . 34 19 . . . . Fabricators 1 | . . . . . . . . 1 . . . . Repair Stations 2 | . . . . . . . 2 . . . . . Recycling Units 4 | . 4 . . . . . . . . . . . Scanalyzers 8 | . . . . . . . 5 3 . . . . Garrison Access 2 | . . . . . . . 2 . . . . . Terminal Hacks 25 | . 10 . 3 . 1 . 5 6 . . . . Record 1 | . . . . . . . 1 . . . . . Part Schematic 4 | . . . . . . . . 4 . . . . Robot Analysis 1 | . 1 . . . . . . . . . . . Prototype ID Bank 3 | . 1 . 1 . . . . 1 . . . . Branch Access Points 2 | . . . 1 . . . 1 . . . . . Terminal Index 1 | . 1 . . . . . . . . . . . Alert Level 1 | . 1 . . . . . . . . . . . Unreport Threat 2 | . . . . . . . 2 . . . . . Locate Traps 2 | . 1 . 1 . . . . . . . . . Disarm Traps 1 | . 1 . . . . . . . . . . . Investigation Status 1 | . 1 . . . . . . . . . . . Registered Components 1 | . . . . . . . 1 . . . . . Zone Layout 4 | . 3 . . . . . . 1 . . . . Proto ID Catalog 1 | . . . . . 1 . . . . . . . Fabricator Hacks 1 | . . . . . . . . 1 . . . . Network Status 1 | . . . . . . . . 1 . . . . Repair Station Hacks 2 | . . . . . . . 2 . . . . . Scan Component 1 | . . . . . . . 1 . . . . . Repair 1 | . . . . . . . 1 . . . . . Recycling Unit Hacks 2 | . 2 . . . . . . . . . . . Report Inventory 1 | . 1 . . . . . . . . . . . Retrieve Components 1 | . 1 . . . . . . . . . . . Scanalyzer 4 | . . . . . . . 2 2 . . . . Insert Component 2 | . . . . . . . 1 1 . . . . Analyze 2 | . . . . . . . 1 1 . . . . Garrison Access Hacks . | . . . . . . . . . . . . . Unauthorized Hacks 22 | . 6 . 4 . . . 10 2 . . . . Terminals 22 | . 6 . 4 . . . 10 2 . . . . Assimilate 1 | . . . . . . . 1 . . . . . Botnet 21 | . 6 . 4 . . . 9 2 . . . . Fabricators . | . . . . . . . . . . . . . Repair Stations . | . . . . . . . . . . . . . Recycling Units . | . . . . . . . . . . . . . Scanalyzers . | . . . . . . . . . . . . . Garrison Access . | . . . . . . . . . . . . . Data Cores Recovered 2 | . . . . . . . 1 1 . . . . Used . | . . . . . . . . . . . . . Hacking Detections 35 | . 8 . 7 . . . 13 7 . . . . Full Trace Events 5 | . 1 . 1 . . . 2 1 . . . . Feedback Events . | . . . . . . . . . . . . . Feedback Blocked . | . . . . . . . . . . . . . Robot Schematics Acquired 4 | . . . . . . . . . . . 4 . Robots Built . | . . . . . . . . . . . . . Authchips . | . . . . . . . . . . . . . Time . | . . . . . . . . . . . . . Total Robot Build Rating . | . . . . . . . . . . . . . Part Schematics Acquired 21 | . . . . . . . 1 5 . . 15 . Parts Built . | . . . . . . . . . . . . . Authchips . | . . . . . . . . . . . . . Time . | . . . . . . . . . . . . . Total Part Build Rating . | . . . . . . . . . . . . . Parts Repaired 1 | . . . . . . . 1 . . . . . Time 38 | . . . . . . . 38 . . . . . Parts Recycled . | . . . . . . . . . . . . . Recycled Matter . | . . . . . . . . . . . . . Retrieved Matter . | . . . . . . . . . . . . . Retrieved Components 6 | . 6 . . . . . . . . . . . Parts Scanalyzed 2 | . . . . . . . 1 1 . . . . Part Schematics Acquired 2 | . . . . . . . 1 1 . . . . Parts Damaged . | . . . . . . . . . . . . . Bothacking | -11 -10 -10 -9 -9 -9 -8 -8 -7 -7 -7 -7 -7 ------------ Run | Yrd Mat Min Mat Min Exi Min Mat Fac Low Low Zio Dee Used RIF Installer . | . . . . . . . . . . . . . Robots Hacked 5 | . . . . . . . . . . . 5 . Non-combat 2 | . . . . . . . . . . . 2 . Combat 3 | . . . . . . . . . . . 3 . Robot Hacks Applied 8 | . . . . . . . . . . . 8 . parse_system 8 | . . . . . . . . . . . 8 . Relay Couplers Released . | . . . . . . . . . . . . . Fabnet Peak Effective % . | . . . . . . . . . . . . . Robots Rewired . | . . . . . . . . . . . . . Allies Hacked . | . . . . . . . . . . . . . Hacks Repelled . | . . . . . . . . . . . . . Allies | -11 -10 -10 -9 -9 -9 -8 -8 -7 -7 -7 -7 -7 -------- Run | Yrd Mat Min Mat Min Exi Min Mat Fac Low Low Zio Dee Total Allies 6 | . . 2 . . . . . . . . 4 . Largest Group 4 | . . 2 2 . . . . . . . 4 . Highest-Rated Group 154 | . . 48 48 . . . . . . . 154 . Highest-Rated Ally 41 | . . 31 31 . . . . . . . 41 . Total Orders . | . . . . . . . . . . . . . Ally Attacks 26 | . . 8 18 . . . . . . . . . Total Damage 399 | . . 122 277 . . . . . . . . . Kills 10 | . . 2 8 . . . . . . . . . Allies Corrupted . | . . . . . . . . . . . . . Allies Melted . | . . . . . . . . . . . . . Intel | -11 -10 -10 -9 -9 -9 -8 -8 -7 -7 -7 -7 -7 ------- Run | Yrd Mat Min Mat Min Exi Min Mat Fac Low Low Zio Dee Active Infowar (turns) 3894 | . . . . 619 405 634 963 510 430 232 . 101 Sensors 1828 | . . . . 619 43 . . 508 430 228 . . Terrain 95 | . . . . . . . . . . . . 95 T.N.C. 3131 | . . . . . 362 634 963 510 430 232 . . ECM 6 | . . . . . . . . . . . . 6 Robot Analysis Total 1 | . 1 . . . . . . . . . . . Derelict Logs Recovered 12 | . . 2 . 3 . . . . 3 2 2 . Drone Launches 1 | . . . . . . . . . . . 1 . Drone Recoveries 1 | . . . . . . . . . . . 1 . Exploration | -11 -10 -10 -9 -9 -9 -8 -8 -7 -7 -7 -7 -7 ------------- Run | Yrd Mat Min Mat Min Exi Min Mat Fac Low Low Zio Dee Turns Passed 7787 | 59 1124 590 478 709 410 634 963 510 430 571 779 530 Spaces Moved 10359 | 46 797 636 802 869 519 550 995 990 1203 1332 1139 481 Core 14 | 14 . . . . . . . . . . . . Treads . | . . . . . . . . . . . . . Legs 1900 | 32 715 . . . 401 550 202 . . . . . Wheels . | . . . . . . . . . . . . . Hover . | . . . . . . . . . . . . . Flight 8445 | . 82 636 802 869 118 . 793 990 1203 1332 1139 481 Fastest Speed 23 | 50 37 37 31 31 31 90 26 26 26 23 27 26 Average Speed 46 | 98 111 37 32 31 76 90 40 26 26 26 54 52 Slowest Speed 130 | 120 130 37 34 34 90 90 115 29 26 107 107 120 Overloaded Moves . | . . . . . . . . . . . . . Propulsion Burnouts . | . . . . . . . . . . . . . Robots Hopped 54 | . . 2 19 7 . . 17 3 1 3 2 . Potential Cave-ins . | . . . . . . . . . . . . . Cave-ins Triggered . | . . . . . . . . . . . . . Exploration Rate (%) 78 | 3 97 99 85 98 89 97 72 22 89 98 91 78 Regions Visited 12 Branch Regions 8 Pre-discovered Areas 5 | . . 2 . 2 . . . . . . 1 . Known Exits Taken 10 | . . 1 1 1 1 1 1 1 1 1 1 . Unknown Exits Taken 2 | 1 1 . . . . . . . . . . . Scrap Searched 15 | . . 1 . 1 . 1 . . 2 8 2 . Spaces Dug 46 | . . . . 33 . . . 2 3 8 . . Terrain Destroyed 194 | . 13 . 2 71 . 22 43 2 3 8 . 30 Melee 13 | . . . . . . . . 2 3 8 . . Projectile 63 | . . . . . . 22 41 . . . . . AOE 118 | . 13 . 2 71 . . 2 . . . . 30 Terrain Rammed . | . . . . . . . . . . . . . Walls Destroyed . | . . . . . . . . . . . . . Machines Disabled . | . . . . . . . . . . . . . Actions | -11 -10 -10 -9 -9 -9 -8 -8 -7 -7 -7 -7 -7 --------- Run | Yrd Mat Min Mat Min Exi Min Mat Fac Low Low Zio Dee Total 13032 | 59 937 971 977 1272 530 690 1510 1226 1313 1514 1282 751 Wait 2256 | . 47 320 152 367 . 133 449 192 109 136 106 245 Move 10243 | 45 796 631 764 854 518 549 963 983 1200 1325 1134 481 Hop 50 | . . 2 18 7 . . 14 3 1 3 2 . Pick Up 100 | 8 17 3 12 5 2 2 19 15 . 11 5 1 Fast Attach 23 | . 3 . . 2 1 . 1 2 . 1 4 9 Attach 45 | 6 3 . 6 1 . . 12 5 . 8 2 2 Detach 8 | . . . . . . . 2 1 . . 3 2 Swap 63 | . 11 4 6 6 5 2 16 7 . 3 1 2 Drop 87 | . 13 3 7 6 4 4 19 13 . 7 6 5 Fire 129 | . 47 8 12 24 . . 13 3 . 6 13 3 Melee 27 | . . . . . . . 2 2 3 13 6 1 Ram . | . . . . . . . . . . . . . Kick . | . . . . . . . . . . . . . Crush . | . . . . . . . . . . . . . Escape Stasis . | . . . . . . . . . . . . . Rewire . | . . . . . . . . . . . . . Trap . | . . . . . . . . . . . . . Miscellaneous 1 | . . . . . . . . . . 1 . . Route ------- -11/Scrapyard -10/Materials (discovered 5 exits: *Mat x3 / [*Min] / *Sub) -10/Mines (discovered 3 exits: *Mat x2 / *Sub) -9/Materials (discovered 5 exits: *Mat x3 / *Min x2) -9/Mines (discovered 4 exits: *Mat x2 / *Exi / *Zio) -9/Exiles -8/Mines (discovered 2 exits: *Mat x2) -8/Materials -7/Factory -7/Lower Caves -7/Lower Caves (discovered 2 exits: *Fac / *Zio) -7/Zion (discovered 2 exits: *Dee / *Pro) -7/Deep Caves History --------- Turn | Location | Event 6 | -11/Scrapyard | Discovered new exit (range 16) 60 | -11/Scrapyard | Entered Materials 307 | -10/Materials | Build established: Mutant 535 | -10/Materials | Discovered new exit (range 9) 596 | -10/Materials | Discovered new exit (range 12) 732 | -10/Materials | Discovered new exit (range 11) 878 | -10/Materials | Discovered new exit (range 15) 1020 | -10/Materials | Discovered new exit (range 10) 1184 | -10/Materials | Entered Mines 1344 | -10/Mines | Found a Scrap Suit stashed away for nefarious purposes 1350 | -10/Mines | Discovered new exit (range 9) 1354 | -10/Mines | Identified exit to Materials 1391 | -10/Mines | Discovered exit to Materials (range 11) 1458 | -10/Mines | Found a hidden stash of uninstalled traps 1467 | -10/Mines | Learned location of Mines (-8) 1468 | -10/Mines | Learned location of Zion (-7) 1568 | -10/Mines | Discovered new exit (range 6) 1576 | -10/Mines | Identified exit to Subcaves 1774 | -10/Mines | Entered Materials 1774 | -9/Materials | Accompanied by 2 allies 1774 | -9/Materials | Evolved 2 slots: Propulsion x2 1780 | -9/Materials | Led the pair of lost Derelicts to an unsafe place 1850 | -9/Materials | Discovered new exit (range 4) 1850 | -9/Materials | Identified exit to Materials 2009 | -9/Materials | Discovered exit to Materials (range 14) 2053 | -9/Materials | Discovered exit to Materials (range 16) 2174 | -9/Materials | Search patrols dispatched 2247 | -9/Materials | Identified exit to Mines 2252 | -9/Materials | Entered Mines 2275 | -9/Mines | Discovered exit to Materials (range 14) 2283 | -9/Mines | Discovered exit to Materials (range 11) 2331 | -9/Mines | Learned Materials terminal intel 2335 | -9/Mines | Learned Materials garrison access intel 2338 | -9/Mines | Found a damaged Exp. Sensor Array with a note attached 2339 | -9/Mines | Found Prototype Device 2340 | -9/Mines | Identified Exp. Sensor Array 2376 | -9/Mines | Learned location of Storage (-7) 2558 | -9/Mines | Build established: Sprinter 2656 | -9/Mines | A Derelict revealed a hidden shortcut to a safe place 2658 | -9/Mines | Identified exit to Zion 2723 | -9/Mines | Received a Rocket Launcher from a helpful Derelict 2790 | -9/Mines | Core integrity fell below 50% 2959 | -9/Mines | Deemed a non-threat by the Exiles lab entrance 2959 | -9/Mines | Discovered new exit (range 5) 2960 | -9/Mines | Identified exit to Exiles 2961 | -9/Mines | Entered Exiles 2970 | -9/Exiles | Met 8R-AWN 2975 | -9/Exiles | Met EX-HEX 2984 | -9/Exiles | Met EX-BIN 2988 | -9/Exiles | Aligned with FarCom system 2989 | -9/Exiles | Given EX-Vault access code 2996 | -9/Exiles | Opened EX-Vault 2998 | -9/Exiles | Found Potential Leg 3000 | -9/Exiles | Found Potential Leg 3009 | -9/Exiles | Found Modified TNC 3017 | -9/Exiles | Found AWS/Gauss 3038 | -9/Exiles | Warned to stay clear of 0b10 Research branches 3062 | -9/Exiles | Met EX-DEC 3174 | -9/Exiles | Visited The Gauntlet 3285 | -9/Exiles | Build established: Mutant 3364 | -9/Exiles | Discovered new exit (range 10) 3370 | -9/Exiles | Identified exit to Mines 3371 | -9/Exiles | Stole three prototypes: AWS/Gauss, Modified TNC, Potential Leg 3371 | -9/Exiles | Entered Mines 3518 | -8/Mines | Discovered exit to Materials (range 2) 3643 | -8/Mines | Discovered exit to Materials (range 11) 4005 | -8/Mines | Entered Materials 4005 | -8/Materials | Evolved 2 slots: Utility x2 4006 | -8/Materials | Loaded intel: 12 terminal locations 4007 | -8/Materials | Loaded intel: 1 garrison access location 4069 | -8/Materials | Garrison activated, responded to threat 4186 | -8/Materials | AWS/Gauss suddenly broke down 4804 | -8/Materials | AWS/Gauss suddenly broke down 4882 | -8/Materials | Repaired Lgt. Deuterium Engine 4903 | -8/Materials | Build established: Sprinter 4958 | -8/Materials | Discovered new exit (range 16) 4967 | -8/Materials | Identified exit to Factory 4968 | -8/Materials | Entered Factory 4968 | -7/Factory | Evolved 2 slots: Utility x2 4970 | -7/Factory | FarCom data flow suspended 5059 | -7/Factory | Discovered new exit (range 6) 5060 | -7/Factory | Identified exit to Lower Caves 5170 | -7/Factory | AWS/Gauss suddenly broke down 5478 | -7/Factory | Entered Lower Caves 5479 | -7/Lower Caves | Encountered a Warlord checkpoint 5527 | -7/Lower Caves | Build established: Scout 5608 | -7/Lower Caves | Learned location of 1 exit from Factory 5610 | -7/Lower Caves | Identified exit to Lower Caves 5801 | -7/Lower Caves | Spotted B-75 Beast 5828 | -7/Lower Caves | Ambushed by wild Derelicts 5908 | -7/Lower Caves | Entered another Lower Caves area 5947 | -7/Lower Caves | Discovered new exit (range 5) 5948 | -7/Lower Caves | Identified exit to Factory 5955 | -7/Lower Caves | Found Alien Artifact 5956 | -7/Lower Caves | Identified Core Expander 5956 | -7/Lower Caves | Installed Core Expander, added new Propulsion slot 6101 | -7/Lower Caves | Learned 4 Factory zone layouts 6113 | -7/Lower Caves | Spotted 4W-D20(f) 6113 | -7/Lower Caves | Spotted 25-311(f) 6113 | -7/Lower Caves | Spotted LE-MKH(f) 6114 | -7/Lower Caves | Spotted 0O-OE5(f) 6117 | -7/Lower Caves | Encountered a Master Thief 6117 | -7/Lower Caves | Encountered a Master Thief 6130 | -7/Lower Caves | Encountered a Warlord checkpoint 6137 | -7/Lower Caves | Encountered a Master Thief 6138 | -7/Lower Caves | Destroyed LE-MKH(f) 6140 | -7/Lower Caves | Encountered a Master Thief 6144 | -7/Lower Caves | Lightning Gun stolen by Master Thief 6145 | -7/Lower Caves | Imp. Deuterium Engine stolen by Master Thief 6146 | -7/Lower Caves | Transmission Jammer stolen by Master Thief 6163 | -7/Lower Caves | System corruption reached 10% 6174 | -7/Lower Caves | Lost 6 parts (1p2n3u) 6327 | -7/Lower Caves | Activated DRS Beacon 6426 | -7/Lower Caves | Build established: Sprinter 6479 | -7/Lower Caves | Entered Zion 6491 | -7/Zion | System corruption cleaned by Quarantine Array 6506 | -7/Zion | Discovered new exit (range 8) 6508 | -7/Zion | Identified exit to Proximity Caves 6613 | -7/Zion | Learned Factory emergency access door positions 6614 | -7/Zion | Found Prototype Device 6614 | -7/Zion | Identified Bomb Factory No. 2 6623 | -7/Zion | Learned location of Warlord (-5) 6659 | -7/Zion | Given the Hacking Drone Bay 6660 | -7/Zion | Found Prototype Device 6660 | -7/Zion | Identified Hacking Drone Bay 6752 | -7/Zion | Found GAL Module 6760 | -7/Zion | Learned 4 Factory zone layouts 7020 | -7/Zion | Met Imprinter 7048 | -7/Zion | Imprinted 7050 | -7/Zion | Declared Zion's savior 7051 | -7/Zion | Build established: Mutant 7220 | -7/Zion | Attacked by Zionites 7232 | -7/Zion | Destroyed Imprinter 7235 | -7/Zion | Extracted access codes from Imprinter's data core 7253 | -7/Zion | Opened final containment barrier to the Deep Caves 7257 | -7/Zion | Discovered new exit (range 3) 7257 | -7/Zion | Saw the warning signs outside the Deep Caves entrance 7257 | -7/Zion | Identified exit to Deep Caves 7258 | -7/Zion | Entered Deep Caves 7275 | -7/Deep Caves | Lost 3 parts (1p1n1u) 7305 | -7/Deep Caves | Found Surveybot 24 Scanner 7307 | -7/Deep Caves | Found Surveybot 24 Chip 7508 | -7/Deep Caves | Z-Facility disabled 7768 | -7/Deep Caves | Spotted AG-10717 7770 | -7/Deep Caves | Lost 7 parts (2n5u) 7780 | -7/Deep Caves | Core integrity fell below 50% 7784 | -7/Deep Caves | Triggered Deep Caves wall 7784 | -7/Deep Caves | Spotted AS-72288 7784 | -7/Deep Caves | Spotted AS-51709 7786 | -7/Deep Caves | Spotted AG-36332 7787 | -7/Deep Caves | Core integrity fell below 20% 7788 | -7/Deep Caves | Destroyed by AG-36332 with Assembled Focal Cannon Last Messages --------------- 07739_ Surveybot 24 Chip destroyed. 07770_ AG-10717: "DSI9AT1D G8OHIBQ29FWG 26R186 QD12WHW8W33 TDK1 81FTS" 07771_ Acquired Imp. Deuterium Engine. 07773_ Acquired Cesium-ion Thruster. 07776_ Imp. Signal Interpreter destroyed. 07776_ Nuclear Pulse Thruster destroyed. 07778_ Acquired Cesium-ion Thruster. 07780_ Dropped Imp. Deuterium Engine. 07784_ The wall dematerializes. [Achievement: That's One Door That Should Stay Closed] 07784_ Acquired Cesium-ion Thruster. 07784_ Imp. Deuterium Engine destroyed. 07785_ Hacking Drone Bay destroyed. 07786_ Cesium-ion Thruster destroyed. 07786_ N4-XSU(g) destroyed. 07787_ Cesium-ion Thruster destroyed. 07788_ as-28851 released from Mobile Assembly Unit. Map ----- +----------------------------------------------------+ | | | | | | | | | ?????????????????????????????????????????????? | | ?????????????????????????????????????????????? | | ?????????????????????????????????????????????? | | ?????????????????????????????????????????????? | | ?????????????????????????????????????????????? | | ?????????????????????????????????????????????? | | ???????????????????? ????????????????????????? | | ????????????????? ? ???#????????????????????? | | ?????????????? # ?? #????????????????????? | | ???????????? ?? #????????????????????? | | ??????????" ?? #????????????????????? | | ?????????? ## ?????????????????????? | | ????????? # ?????????????????????? | | ????????? G ????????????????????? | | ????????? ?????????????????????? | | ?????????" ????????????????????? | | ?????????" ????????????????????? | | ?????????" ????????????????????? | | ?????????" g ;???#?????????????????? | | ????????"" [ #?? #??????????????????# | | ??????### ### ####????????????#### | | ???""""a ! @ # #???????????## # | | ??? aa [[ M ##????????????## | | ??? aa ###??????????# | | ??" a #??????????# | | ??" aha aaa h ! ### ????# | | ??" aa a = ! ##?? #??## | | ??" a a * ##?? #??# | | ??" a = ;#??# #??# | | ????""" ! ##???# #??# | | ??????### ] #???## #### | | ????????"" ! ! M ] #??## ## | | ?????????" g] #??# | | ?????????" g b #??# | | ?????????" #### | | ????????"" ! *] ## | | ????????# " | | ????????" * # | | ????????" # | | ????????" | | ????????""" * | | ????????" | | ????????"" ## ### | | ????????" ## #??# | | ????????"" #### #??? | | ????????" # # "#?### #??? | +----------------------------------------------------+ Best States ------------- Heat Dissipation 45 Energy Generation 18 Energy Capacity 700 Matter Stores 300 Matter Capacity 300 Sight Range 16 Robot Scan Range 20 Terrain Scan Range 24 Terrain Scan Density 2010 Additional Mass Support 9 Armor Coverage 225 Evasion (%) 65 Offensive Hacking 11 Defensive Hacking 11 Item Schematics ----------------- Hacking Suite | -8/Materials | Scanalyzed Recalibrator | -7/Factory | Scanalyzed Cesium-ion Thruster | -7/Factory | Hacked System Shield | -7/Factory | Hacked Adv. Weight Redist. System | -7/Factory | Hacked Med. Storage Unit | -7/Factory | Hacked Proton Cannon | -7/Zion | Archive Weapon Cycler | -7/Zion | Archive Hvy. Ion Cannon | -7/Zion | Archive Imp. Reaction Control System | -7/Zion | Archive Lrn. Tractor Beam | -7/Zion | Archive Med. Treads | -7/Zion | Archive Angular Momentum Engine | -7/Zion | Archive Gauss Cannon | -7/Zion | Archive Imp. Actuator Array | -7/Zion | Archive Arc Projector | -7/Zion | Archive EM Shield | -7/Zion | Archive Flak Gun | -7/Zion | Archive Phase Cannon | -7/Zion | Archive Imp. Field Recycling Unit | -7/Zion | Archive Field Propulsion Drive | -7/Zion | Archive Robot Schematics ------------------ K-01 Serf | -7/Zion | Archive B-36 Bruiser | -7/Zion | Archive T-07 Excavator | -7/Zion | Archive D-83 Annihilator | -7/Zion | Archive Fabricated ------------ Nothing Repaired ---------- Lgt. Deuterium Engine | 4% | -8/Materials Alien Tech Used ----------------- Core Expander Achievements -------------- That's One Door That Should Stay Closed Challenges ------------ None Game ------ Seed HugeSeismicLink Manual? 0 Play Time 01:48:31 Cumulative 58.7 hours Start 2025.08.19 @ 18:26:45 End 2025.08.19 @ 20:33:30 Sessions 1 Manual Loads 0 Difficulty Rogue Special Mode None Game No. 45 Rogue 45 Adventurer 0 Explorer 0 Win Type - Total 1 Types 1/0/0/0/0/0/0/0/0/0 Lore% 54 Gallery% 44 Achievement% 38 Wizard Run 0 Options --------- Layout 1 ASCII 0 Keyboard 0 Movement Mouse Keybinds 0 Fullscreen 1 Font 24/Smallcaps Map View 50x35 Zoom Use 0% Tactical HUD 1 Map Filters NONE Filters NONE Steam 1 RUN: ac7077bb-aa13-4151-a474-f2f7ce446940